[Event "Live Chess"]
[Site "Chess.com"]
[Date "2023.05.20"]
[Round "-"]
[White "MMmaaxxxx"]
[Black "HonestJoe1"]
[Result "1-0"]
[WhiteElo "2014"]
[BlackElo "2117"]
[TimeControl "300"]
[EndTime "9:14:40 PDT"]
[Termination "MMmaaxxxx won by resignation"]

1. e4 {[%clk 0:04:58.3]} 1... c5 {[%clk 0:04:57.4]} 2. a3 {[%clk 0:04:52]} 2...
g6 {[%clk 0:04:53.3]} 3. Nc3 {[%clk 0:04:50.8]} 3... Bg7 {[%clk 0:04:50.7]} 4.
Bc4 {[%clk 0:04:49.9]} 4... Nc6 {[%clk 0:04:47]} 5. d3 {[%clk 0:04:48.9]} 5...
e6 {[%clk 0:04:44.8]} 6. Ba2 {[%clk 0:04:47.8]} 6... Nge7 {[%clk 0:04:43.6]} 7.
h4 {[%clk 0:04:45.4]} 7... h5 {[%clk 0:04:41.2]} 8. Bg5 {[%clk 0:04:43.9]} 8...
Qb6 {[%clk 0:04:32.8]} 9. Nge2 {[%clk 0:04:36.9]} 9... Qxb2 {[%clk 0:04:23.5]}
10. Bd2 {[%clk 0:04:15.6]} 10... Nd4 {[%clk 0:04:15.4]} 11. Rb1 {[%clk
0:04:05.9]} 11... Qxc2 {[%clk 0:04:06.6]} 12. Nxd4 {[%clk 0:03:57.7]} 12...
Qxd1+ {[%clk 0:04:04.3]} 13. Nxd1 {[%clk 0:03:56.2]} 13... Bxd4 {[%clk
0:03:59.4]} 14. O-O {[%clk 0:03:50.4]} 14... O-O {[%clk 0:03:58.2]} 15. Kh2
{[%clk 0:03:28.1]} 15... b6 {[%clk 0:03:56.6]} 16. a4 {[%clk 0:03:22.6]} 16...
Ba6 {[%clk 0:03:55.3]} 17. Rb3 {[%clk 0:03:17.5]} 17... Nc6 {[%clk 0:03:50.7]}
18. Bb1 {[%clk 0:03:08.6]} 18... d5 {[%clk 0:03:38]} 19. exd5 {[%clk 0:02:45.7]}
19... exd5 {[%clk 0:03:37]} 20. Bh6 {[%clk 0:02:43.6]} 20... Rfe8 {[%clk
0:03:32.8]} 21. Ne3 {[%clk 0:02:36.1]} 21... c4 {[%clk 0:03:23.6]} 22. dxc4
{[%clk 0:02:30.1]} 22... dxc4 {[%clk 0:03:22.6]} 23. Ra3 {[%clk 0:02:23.8]}
23... Bb2 {[%clk 0:02:42.3]} 24. Ra2 {[%clk 0:02:15.4]} 24... c3 {[%clk
0:02:41]} 25. Rd1 {[%clk 0:02:14.1]} 25... Nb4 {[%clk 0:02:06.5]} 26. Rxb2
{[%clk 0:02:03.5]} 26... cxb2 {[%clk 0:02:05.2]} 27. Rd2 {[%clk 0:02:02.9]}
27... Rad8 {[%clk 0:01:49.1]} 28. Rxb2 {[%clk 0:02:00.1]} 28... Nd3 {[%clk
0:01:45.6]} 29. Rc2 {[%clk 0:01:53.3]} 29... Nc5 {[%clk 0:01:38.6]} 30. Ra2
{[%clk 0:01:42.8]} 30... Rd2 {[%clk 0:01:36.1]} 31. Rxd2 {[%clk 0:01:37.9]} 1-0

[Event "Live Chess"]
[Site "Chess.com"]
[Date "2023.05.20"]
[Round "-"]
[White "ChessTWSS"]
[Black "TobyQuaite"]
[Result "0-1"]
[WhiteElo "1530"]
[BlackElo "1712"]
[TimeControl "300"]
[EndTime "9:14:43 PDT"]
[Termination "TobyQuaite won by checkmate"]

1. d4 {[%clk 0:04:57.5]} 1... e6 {[%clk 0:04:58.9]} 2. Bf4 {[%clk 0:04:54.1]}
2... Nf6 {[%clk 0:04:57.8]} 3. Nf3 {[%clk 0:04:48.3]} 3... c5 {[%clk 0:04:56.6]}
4. e3 {[%clk 0:04:44.9]} 4... d5 {[%clk 0:04:54.9]} 5. c3 {[%clk 0:04:41.5]}
5... Qb6 {[%clk 0:04:53.8]} 6. Qb3 {[%clk 0:04:37.6]} 6... Qxb3 {[%clk
0:04:45.3]} 7. axb3 {[%clk 0:04:34.1]} 7... Nc6 {[%clk 0:04:45.2]} 8. Nbd2
{[%clk 0:04:30.1]} 8... Be7 {[%clk 0:04:41.4]} 9. h4 {[%clk 0:04:24.3]} 9... Nh5
{[%clk 0:04:38.6]} 10. g3 {[%clk 0:04:16.3]} 10... Nxf4 {[%clk 0:04:31.4]} 11.
exf4 {[%clk 0:04:12.7]} 11... cxd4 {[%clk 0:04:29]} 12. cxd4 {[%clk 0:04:08.2]}
12... Bb4 {[%clk 0:04:19.3]} 13. Ne5 {[%clk 0:03:54.6]} 13... Nxd4 {[%clk
0:04:07.3]} 14. O-O-O {[%clk 0:03:40.4]} 14... Bxd2+ {[%clk 0:04:05.5]} 15. Kxd2
{[%clk 0:03:35]} 15... Nxb3+ {[%clk 0:04:04.6]} 16. Kc3 {[%clk 0:03:30.8]} 16...
Nc5 {[%clk 0:04:01.9]} 17. Kd4 {[%clk 0:03:25.6]} 17... Ne4 {[%clk 0:03:52.7]}
18. Ke3 {[%clk 0:03:17]} 18... f6 {[%clk 0:03:48.4]} 19. Nd3 {[%clk 0:03:12.6]}
19... Ke7 {[%clk 0:03:40.3]} 20. Bh3 {[%clk 0:03:04.3]} 20... Bd7 {[%clk
0:03:33.6]} 21. f5 {[%clk 0:03:00.3]} 21... exf5 {[%clk 0:03:28.4]} 22. f3
{[%clk 0:02:54.8]} 22... Nxg3 {[%clk 0:03:24.4]} 23. Rhg1 {[%clk 0:02:46.2]}
23... Nh5 {[%clk 0:03:23.2]} 24. Nf4 {[%clk 0:02:40.4]} 24... Nxf4 {[%clk
0:03:05.8]} 25. Kxf4 {[%clk 0:02:39.1]} 25... g6 {[%clk 0:03:01.3]} 26. Rxd5
{[%clk 0:02:35.5]} 26... Rac8 {[%clk 0:02:50.8]} 27. Re1+ {[%clk 0:02:24.4]}
27... Kd8 {[%clk 0:02:45]} 28. Bf1 {[%clk 0:02:17.2]} 28... Kc7 {[%clk
0:02:25.1]} 29. Re7 {[%clk 0:02:10.6]} 29... Rhd8 {[%clk 0:01:49.8]} 30. Bb5
{[%clk 0:02:04.8]} 30... Kb8 {[%clk 0:01:48.2]} 31. Rdxd7 {[%clk 0:02:01.3]}
31... Rxd7 {[%clk 0:01:42.1]} 32. Bxd7 {[%clk 0:01:57.3]} 32... Rc4+ {[%clk
0:01:40.7]} 33. Kg3 {[%clk 0:01:52.5]} 33... Rc2 {[%clk 0:01:32.3]} 34. Re8+
{[%clk 0:01:48.8]} 34... Kc7 {[%clk 0:01:31.4]} 35. Rc8+ {[%clk 0:01:44.1]}
35... Kxd7 {[%clk 0:01:30.8]} 36. Rxc2 {[%clk 0:01:42.6]} 36... h6 {[%clk
0:01:27.2]} 37. b4 {[%clk 0:01:36.2]} 37... Kd6 {[%clk 0:01:24.3]} 38. Rc8
{[%clk 0:01:21.4]} 38... g5 {[%clk 0:01:08.9]} 39. Ra8 {[%clk 0:01:16.4]} 39...
a6 {[%clk 0:01:01.5]} 40. Rg8 {[%clk 0:01:11.7]} 40... gxh4+ {[%clk 0:00:55.1]}
41. Kxh4 {[%clk 0:01:01.1]} 41... Ke5 {[%clk 0:00:54.4]} 42. Rg7 {[%clk
0:00:52.5]} 42... Kf4 {[%clk 0:00:48.1]} 43. Rxb7 {[%clk 0:00:49.1]} 43... Kxf3
{[%clk 0:00:47.6]} 44. Rb6 {[%clk 0:00:42.1]} 44... f4 {[%clk 0:00:43.9]} 45.
Rxf6 {[%clk 0:00:39.4]} 45... Ke3 {[%clk 0:00:43]} 46. Kg4 {[%clk 0:00:38.2]}
46... h5+ {[%clk 0:00:40.2]} 47. Kg5 {[%clk 0:00:33.5]} 47... f3 {[%clk
0:00:39]} 48. Kxh5 {[%clk 0:00:30.4]} 48... f2 {[%clk 0:00:38.3]} 49. Rxf2
{[%clk 0:00:27.9]} 49... Kxf2 {[%clk 0:00:37.5]} 50. Kg6 {[%clk 0:00:27.5]}
50... Ke3 {[%clk 0:00:37.1]} 51. Kf6 {[%clk 0:00:27.2]} 51... Kd4 {[%clk
0:00:36.6]} 52. Ke6 {[%clk 0:00:27]} 52... Kc4 {[%clk 0:00:36.2]} 53. Kd6 {[%clk
0:00:26.4]} 53... Kxb4 {[%clk 0:00:35.7]} 54. Kc6 {[%clk 0:00:26.2]} 54... a5
{[%clk 0:00:35.4]} 55. Kd5 {[%clk 0:00:24.2]} 55... a4 {[%clk 0:00:35]} 56. Kd4
{[%clk 0:00:24.1]} 56... a3 {[%clk 0:00:34.6]} 57. Kd3 {[%clk 0:00:24]} 57...
Kb3 {[%clk 0:00:34.2]} 58. Kd2 {[%clk 0:00:22.5]} 58... Kb2 {[%clk 0:00:33.8]}
59. Kd1 {[%clk 0:00:21.1]} 59... a2 {[%clk 0:00:33.7]} 60. Kd2 {[%clk
0:00:20.1]} 60... a1=Q {[%clk 0:00:33.6]} 61. Kd3 {[%clk 0:00:19.7]} 61... Qc1
{[%clk 0:00:33]} 62. Ke4 {[%clk 0:00:18.4]} 62... Qd2 {[%clk 0:00:32.4]} 63. Ke5
{[%clk 0:00:17.4]} 63... Qd3 {[%clk 0:00:31.7]} 64. Ke6 {[%clk 0:00:16.8]} 64...
Qd4 {[%clk 0:00:31.2]} 65. Ke7 {[%clk 0:00:16.4]} 65... Qd5 {[%clk 0:00:30.7]}
66. Ke8 {[%clk 0:00:16]} 66... Qd6 {[%clk 0:00:29.8]} 67. Kf7 {[%clk 0:00:15.1]}
67... Kc3 {[%clk 0:00:28.7]} 68. Kg7 {[%clk 0:00:14]} 68... Qe6 {[%clk
0:00:27.6]} 69. Kh7 {[%clk 0:00:13.9]} 69... Qf6 {[%clk 0:00:24.5]} 70. Kg8
{[%clk 0:00:12.9]} 70... Qe7 {[%clk 0:00:24.1]} 71. Kh8 {[%clk 0:00:11.2]} 71...
Kd4 {[%clk 0:00:24]} 72. Kg8 {[%clk 0:00:10.2]} 72... Ke5 {[%clk 0:00:23.9]} 73.
Kh8 {[%clk 0:00:09.8]} 73... Kf6 {[%clk 0:00:23.8]} 74. Kg8 {[%clk 0:00:09.5]}
74... Qg7# {[%clk 0:00:23.7]} 0-1

[Event "Live Chess"]
[Site "Chess.com"]
[Date "2023.05.20"]
[Round "-"]
[White "LiamBellwood"]
[Black "SaraTang"]
[Result "1-0"]
[WhiteElo "2115"]
[BlackElo "170"]
[TimeControl "300"]
[EndTime "9:14:44 PDT"]
[Termination "LiamBellwood won by checkmate"]

1. d4 {[%clk 0:04:58.8]} 1... d5 {[%clk 0:04:58]} 2. Nc3 {[%clk 0:04:58.4]} 2...
Nc6 {[%clk 0:04:56.6]} 3. Bf4 {[%clk 0:04:57.9]} 3... Nf6 {[%clk 0:04:52.9]} 4.
Nb5 {[%clk 0:04:57.3]} 4... Rb8 {[%clk 0:04:46.3]} 5. Nxc7+ {[%clk 0:04:56.2]}
5... Kd7 {[%clk 0:04:22.4]} 6. Nb5 {[%clk 0:04:53.4]} 6... Ke8 {[%clk
0:04:20.1]} 7. Bxb8 {[%clk 0:04:49.7]} 7... a6 {[%clk 0:04:15.4]} 8. Nc3 {[%clk
0:04:46]} 8... Nxb8 {[%clk 0:04:14]} 9. Nf3 {[%clk 0:04:44.9]} 9... Ng4 {[%clk
0:04:08.2]} 10. e4 {[%clk 0:04:43.1]} 10... dxe4 {[%clk 0:04:06.5]} 11. Nxe4
{[%clk 0:04:43]} 11... e6 {[%clk 0:04:02.3]} 12. Bd3 {[%clk 0:04:41.5]} 12...
Nxf2 {[%clk 0:03:47.1]} 13. Nxf2 {[%clk 0:04:38.9]} 13... e5 {[%clk 0:03:43]}
14. Nxe5 {[%clk 0:04:35.5]} 14... Qxd4 {[%clk 0:03:37.9]} 15. Bb5+ {[%clk
0:04:35]} 15... axb5 {[%clk 0:03:34.1]} 16. Qxd4 {[%clk 0:04:32.7]} 16... b6
{[%clk 0:03:29.9]} 17. O-O-O {[%clk 0:04:31.6]} 17... Bc5 {[%clk 0:03:26.1]} 18.
Qd8# {[%clk 0:04:30.6]} 1-0

[Event "Live Chess"]
[Site "Chess.com"]
[Date "2023.05.20"]
[Round "-"]
[White "TheSmoulderingMaster"]
[Black "seabuck"]
[Result "0-1"]
[WhiteElo "1797"]
[BlackElo "1830"]
[TimeControl "300"]
[EndTime "9:14:50 PDT"]
[Termination "seabuck won by resignation"]

1. e4 {[%clk 0:04:56.6]} 1... e6 {[%clk 0:04:58.4]} 2. d4 {[%clk 0:04:54.8]}
2... d5 {[%clk 0:04:57.8]} 3. Nc3 {[%clk 0:04:53.8]} 3... Nf6 {[%clk 0:04:55.2]}
4. Bg5 {[%clk 0:04:50.5]} 4... Be7 {[%clk 0:04:53.1]} 5. e5 {[%clk 0:04:49.9]}
5... Nfd7 {[%clk 0:04:50.7]} 6. Bxe7 {[%clk 0:04:45.5]} 6... Qxe7 {[%clk
0:04:49.6]} 7. f4 {[%clk 0:04:38.6]} 7... a6 {[%clk 0:04:45.1]} 8. Nf3 {[%clk
0:04:35.9]} 8... c5 {[%clk 0:04:43.7]} 9. dxc5 {[%clk 0:04:27.9]} 9... Nxc5
{[%clk 0:04:39.3]} 10. Bd3 {[%clk 0:04:26.6]} 10... Nc6 {[%clk 0:04:30.2]} 11.
O-O {[%clk 0:04:20.7]} 11... Bd7 {[%clk 0:04:24.7]} 12. Ne2 {[%clk 0:04:07.9]}
12... Nb4 {[%clk 0:04:07]} 13. Ned4 {[%clk 0:03:59.8]} 13... Nbxd3 {[%clk
0:03:56.2]} 14. cxd3 {[%clk 0:03:56.6]} 14... O-O {[%clk 0:03:54.5]} 15. Ng5
{[%clk 0:03:51.3]} 15... h6 {[%clk 0:03:42.2]} 16. Nh3 {[%clk 0:03:48.1]} 16...
Bb5 {[%clk 0:03:30.6]} 17. Rf3 {[%clk 0:03:35.1]} 17... Nxd3 {[%clk 0:03:16.8]}
18. Rxd3 {[%clk 0:03:24.7]} 18... Bxd3 {[%clk 0:03:15.1]} 19. Qxd3 {[%clk
0:03:21.9]} 19... Rac8 {[%clk 0:03:09.8]} 20. f5 {[%clk 0:03:14.2]} 20... exf5
{[%clk 0:03:01.4]} 21. Nxf5 {[%clk 0:03:13.2]} 21... Qxe5 {[%clk 0:02:54.2]} 22.
Rf1 {[%clk 0:03:06.6]} 22... Rc6 {[%clk 0:02:41.3]} 23. Nf4 {[%clk 0:02:50.1]}
23... Rd8 {[%clk 0:02:30.2]} 24. Nd4 {[%clk 0:02:40.2]} 24... Rf6 {[%clk
0:02:25.1]} 25. g3 {[%clk 0:02:24.4]} 25... g5 {[%clk 0:02:18.1]} 26. Nh5 {[%clk
0:02:02.4]} 26... Rxf1+ {[%clk 0:02:15.6]} 27. Kxf1 {[%clk 0:02:01.2]} 27... Rc8
{[%clk 0:02:07.1]} 28. Nf3 {[%clk 0:01:36.3]} 28... Rc1+ {[%clk 0:01:50.5]} 29.
Kg2 {[%clk 0:01:31.9]} 29... Qxb2+ {[%clk 0:01:46.5]} 30. Kh3 {[%clk 0:01:30.3]}
30... Rc3 {[%clk 0:01:28.7]} 31. Nf6+ {[%clk 0:01:26.4]} 31... Kg7 {[%clk
0:01:27.1]} 32. Nh5+ {[%clk 0:01:20.5]} 32... Kf8 {[%clk 0:01:23.7]} 33. Qf5
{[%clk 0:01:12.5]} 33... Qb6 {[%clk 0:01:11.9]} 34. Ne5 {[%clk 0:01:04.8]} 34...
Qe6 {[%clk 0:01:08.1]} 35. Nd7+ {[%clk 0:00:58.2]} 35... Ke7 {[%clk 0:01:04.1]}
36. Qxe6+ {[%clk 0:00:41.5]} 36... fxe6 {[%clk 0:00:57.9]} 37. Ne5 {[%clk
0:00:31.6]} 37... d4 {[%clk 0:00:55.9]} 38. Kg2 {[%clk 0:00:26.3]} 38... Rc2+
{[%clk 0:00:52.9]} 39. Kf3 {[%clk 0:00:25]} 39... Rxh2 {[%clk 0:00:51.5]} 40.
Ke4 {[%clk 0:00:19.5]} 40... Rxh5 {[%clk 0:00:48.3]} 41. g4 {[%clk 0:00:16.2]}
41... Rh2 {[%clk 0:00:45.9]} 42. Kxd4 {[%clk 0:00:15.2]} 42... Rxa2 {[%clk
0:00:44.1]} 43. Nc4 {[%clk 0:00:12]} 43... b5 {[%clk 0:00:41.6]} 44. Nb6 {[%clk
0:00:03.8]} 0-1

[Event "Live Chess"]
[Site "Chess.com"]
[Date "2023.05.20"]
[Round "-"]
[White "GEMdzq"]
[Black "SupremeTactician"]
[Result "0-1"]
[WhiteElo "2346"]
[BlackElo "2403"]
[TimeControl "300"]
[EndTime "9:14:55 PDT"]
[Termination "SupremeTactician won by resignation"]

1. e4 {[%clk 0:04:55.2]} 1... e5 {[%clk 0:04:59.2]} 2. Nf3 {[%clk 0:04:53.8]}
2... Nc6 {[%clk 0:04:58.7]} 3. Bb5 {[%clk 0:04:52.2]} 3... a6 {[%clk 0:04:49.2]}
4. Ba4 {[%clk 0:04:51.1]} 4... Nf6 {[%clk 0:04:48.9]} 5. O-O {[%clk 0:04:49.4]}
5... Nxe4 {[%clk 0:04:48.4]} 6. Re1 {[%clk 0:04:30.5]} 6... Nc5 {[%clk
0:04:44.1]} 7. Bxc6 {[%clk 0:04:12.8]} 7... dxc6 {[%clk 0:04:42.5]} 8. Nxe5
{[%clk 0:04:04]} 8... Ne6 {[%clk 0:04:40.3]} 9. d4 {[%clk 0:03:40.1]} 9... Bd6
{[%clk 0:04:36.6]} 10. c3 {[%clk 0:03:30.2]} 10... O-O {[%clk 0:04:32.2]} 11.
Nd2 {[%clk 0:03:28.7]} 11... f6 {[%clk 0:04:17]} 12. Nef3 {[%clk 0:03:27.8]}
12... Bd7 {[%clk 0:04:07]} 13. Ne4 {[%clk 0:03:24.4]} 13... Bf4 {[%clk
0:04:06.3]} 14. Qb3 {[%clk 0:03:16.9]} 14... Bxc1 {[%clk 0:04:03.7]} 15. Raxc1
{[%clk 0:03:16.5]} 15... Kh8 {[%clk 0:04:02.7]} 16. Nc5 {[%clk 0:03:04.3]} 16...
Nxc5 {[%clk 0:03:56.9]} 17. dxc5 {[%clk 0:03:04.2]} 17... Bg4 {[%clk 0:03:48.1]}
18. Nd4 {[%clk 0:02:56.8]} 18... Qd5 {[%clk 0:03:42]} 19. f3 {[%clk 0:02:47.2]}
19... Bd7 {[%clk 0:03:25.6]} 20. Qxd5 {[%clk 0:02:18.9]} 20... cxd5 {[%clk
0:03:25.5]} 21. Re7 {[%clk 0:02:17.7]} 21... Rad8 {[%clk 0:03:18]} 22. Rce1
{[%clk 0:02:15.9]} 22... Kg8 {[%clk 0:02:28.6]} 23. Kf2 {[%clk 0:02:14.6]} 23...
Rf7 {[%clk 0:02:15.5]} 24. R7e3 {[%clk 0:01:55.9]} 24... Kf8 {[%clk 0:02:04]}
25. h4 {[%clk 0:01:51.3]} 25... g6 {[%clk 0:02:01.1]} 26. g4 {[%clk 0:01:37]}
26... c6 {[%clk 0:01:52.6]} 27. Kg3 {[%clk 0:01:35.3]} 27... Re8 {[%clk
0:01:38.3]} 28. a4 {[%clk 0:01:31.9]} 28... Rfe7 {[%clk 0:01:32.6]} 29. Rxe7
{[%clk 0:01:29.8]} 29... Rxe7 {[%clk 0:01:32.5]} 30. Rxe7 {[%clk 0:01:28]} 30...
Kxe7 {[%clk 0:01:32.4]} 31. a5 {[%clk 0:01:23.6]} 31... Kf7 {[%clk 0:01:28.2]}
32. Kf4 {[%clk 0:01:14.8]} 32... Ke7 {[%clk 0:01:27.3]} 33. g5 {[%clk
0:01:12.6]} 33... Kf7 {[%clk 0:01:26.5]} 34. Nc2 {[%clk 0:00:54.4]} 34... Ke7
{[%clk 0:01:15.1]} 35. Ne3 {[%clk 0:00:52.6]} 35... Kf7 {[%clk 0:01:12.7]} 36.
Nc2 {[%clk 0:00:49.1]} 36... Ke7 {[%clk 0:01:11.2]} 37. gxf6+ {[%clk 0:00:45.7]}
37... Kxf6 {[%clk 0:01:10.5]} 38. Ne3 {[%clk 0:00:44]} 38... h6 {[%clk
0:01:06.9]} 39. Kg3 {[%clk 0:00:40.8]} 39... Ke5 {[%clk 0:01:03.8]} 40. Nc2
{[%clk 0:00:35.7]} 40... Bf5 {[%clk 0:00:45.3]} 41. Nd4 {[%clk 0:00:34.9]} 41...
Bd7 {[%clk 0:00:45.1]} 42. Nc2 {[%clk 0:00:33.7]} 42... Bf5 {[%clk 0:00:41.4]}
43. Nd4 {[%clk 0:00:33]} 43... Bc8 {[%clk 0:00:40]} 44. Nc2 {[%clk 0:00:32.1]}
44... d4 {[%clk 0:00:31.9]} 45. cxd4+ {[%clk 0:00:29.4]} 45... Kd5 {[%clk
0:00:30.8]} 46. h5 {[%clk 0:00:23.8]} 46... gxh5 {[%clk 0:00:27]} 47. Kf4 {[%clk
0:00:21.3]} 47... h4 {[%clk 0:00:25.9]} 48. Ke3 {[%clk 0:00:19.3]} 48... h3
{[%clk 0:00:24.9]} 49. Kf2 {[%clk 0:00:17.8]} 49... h5 {[%clk 0:00:22]} 50. Kg3
{[%clk 0:00:17.2]} 50... h4+ {[%clk 0:00:20.6]} 51. Kh2 {[%clk 0:00:15.8]} 51...
Bd7 {[%clk 0:00:19.5]} 52. b3 {[%clk 0:00:14.5]} 52... Bc8 {[%clk 0:00:18.4]}
53. Kg1 {[%clk 0:00:14.2]} 53... Be6 {[%clk 0:00:16.4]} 54. Kh2 {[%clk
0:00:14.1]} 54... Bd7 {[%clk 0:00:15.5]} 55. Kg1 {[%clk 0:00:13.6]} 55... Bc8
{[%clk 0:00:14.6]} 56. Kh2 {[%clk 0:00:13.5]} 56... Bf5 {[%clk 0:00:14.4]} 57.
Kg1 {[%clk 0:00:13.1]} 57... Bxc2 {[%clk 0:00:13.7]} 58. b4 {[%clk 0:00:12.3]}
58... Kxd4 {[%clk 0:00:12.9]} 59. Kh2 {[%clk 0:00:11.6]} 59... Bf5 {[%clk
0:00:12.8]} 0-1

[Event "Live Chess"]
[Site "Chess.com"]
[Date "2023.05.20"]
[Round "-"]
[White "AttackingSnowLeopard"]
[Black "flyingpuffins"]
[Result "0-1"]
[WhiteElo "1923"]
[BlackElo "1983"]
[TimeControl "300"]
[EndTime "9:15:03 PDT"]
[Termination "flyingpuffins won on time"]

1. d4 {[%clk 0:04:57.4]} 1... d5 {[%clk 0:04:57.7]} 2. c4 {[%clk 0:04:56.5]}
2... c6 {[%clk 0:04:56.9]} 3. Nf3 {[%clk 0:04:55]} 3... Nf6 {[%clk 0:04:56.1]}
4. e3 {[%clk 0:04:54]} 4... Bf5 {[%clk 0:04:52.9]} 5. Nc3 {[%clk 0:04:52.6]}
5... e6 {[%clk 0:04:52.1]} 6. Nh4 {[%clk 0:04:51.4]} 6... Bg6 {[%clk 0:04:51.5]}
7. Nxg6 {[%clk 0:04:49.7]} 7... hxg6 {[%clk 0:04:51.4]} 8. Bd2 {[%clk
0:04:48.2]} 8... Nbd7 {[%clk 0:04:19.2]} 9. Qc2 {[%clk 0:04:46]} 9... Be7 {[%clk
0:04:00.2]} 10. O-O-O {[%clk 0:04:31.7]} 10... Rc8 {[%clk 0:03:05.3]} 11. Kb1
{[%clk 0:04:26.5]} 11... O-O {[%clk 0:02:56.3]} 12. f3 {[%clk 0:04:17.4]} 12...
a6 {[%clk 0:02:50.6]} 13. cxd5 {[%clk 0:03:49.6]} 13... cxd5 {[%clk 0:02:47.6]}
14. Qb3 {[%clk 0:03:47]} 14... b5 {[%clk 0:02:44]} 15. a4 {[%clk 0:03:17.3]}
15... bxa4 {[%clk 0:02:34.1]} 16. Nxa4 {[%clk 0:03:08.6]} 16... Rb8 {[%clk
0:02:29.6]} 17. Qa2 {[%clk 0:03:03.9]} 17... Qc7 {[%clk 0:02:06.6]} 18. Rc1
{[%clk 0:02:54.2]} 18... Qa7 {[%clk 0:02:05.2]} 19. Bd3 {[%clk 0:02:48.9]} 19...
Bb4 {[%clk 0:01:54.1]} 20. Bxb4 {[%clk 0:02:19.5]} 20... Rxb4 {[%clk 0:01:54]}
21. Rc6 {[%clk 0:02:17.6]} 21... Rfb8 {[%clk 0:01:38.1]} 22. Rhc1 {[%clk
0:02:08.6]} 22... Nb6 {[%clk 0:01:25.7]} 23. Nxb6 {[%clk 0:01:49.2]} 23... R4xb6
{[%clk 0:01:25.6]} 24. Rc8+ {[%clk 0:01:44.1]} 24... Kh7 {[%clk 0:01:20.1]} 25.
Rxb8 {[%clk 0:01:42.3]} 25... Qxb8 {[%clk 0:01:12.5]} 26. Bxa6 {[%clk
0:01:27.7]} 26... Qxh2 {[%clk 0:00:48.6]} 27. Bf1 {[%clk 0:01:21.6]} 27... Qb8
{[%clk 0:00:46.9]} 28. Rc2 {[%clk 0:01:10.5]} 28... Rb3 {[%clk 0:00:45.7]} 29.
Re2 {[%clk 0:00:44.2]} 29... Nh5 {[%clk 0:00:37.5]} 30. g4 {[%clk 0:00:26.6]}
30... Ng3 {[%clk 0:00:35.4]} 31. Rh2+ {[%clk 0:00:26.1]} 31... Kg8 {[%clk
0:00:33.4]} 32. Ba6 {[%clk 0:00:21.1]} 32... Rxe3 {[%clk 0:00:25.9]} 33. Rc2
{[%clk 0:00:18.8]} 33... Kh7 {[%clk 0:00:19.8]} 34. Rh2+ {[%clk 0:00:17.5]}
34... Kg8 {[%clk 0:00:19.1]} 35. Rc2 {[%clk 0:00:16.8]} 35... Qb6 {[%clk
0:00:13.3]} 36. Rc8+ {[%clk 0:00:13.9]} 36... Kh7 {[%clk 0:00:12.8]} 37. Rc1
{[%clk 0:00:12.7]} 37... Qxd4 {[%clk 0:00:11.1]} 38. Qa5 {[%clk 0:00:11]} 38...
g5 {[%clk 0:00:09]} 39. Rc2 {[%clk 0:00:09.4]} 39... Kg6 {[%clk 0:00:08.9]} 40.
Bc8 {[%clk 0:00:07.2]} 40... Ne2 {[%clk 0:00:08.3]} 41. Bxe6 {[%clk 0:00:04.3]}
41... Nc3+ {[%clk 0:00:08.2]} 42. Rxc3 {[%clk 0:00:02.2]} 42... Re1+ {[%clk
0:00:08.1]} 43. Ka2 {[%clk 0:00:01.5]} 43... Qd1 {[%clk 0:00:07.7]} 44. Rc7
{[%clk 0:00:00.7]} 44... Qa1+ {[%clk 0:00:07.6]} 45. Kb3 {[%clk 0:00:00.2]}
45... Qxa5 {[%clk 0:00:06.9]} 0-1

[Event "Live Chess"]
[Site "Chess.com"]
[Date "2023.05.20"]
[Round "-"]
[White "dhanushkasri"]
[Black "KuriyamaMiraiUA"]
[Result "0-1"]
[WhiteElo "512"]
[BlackElo "583"]
[TimeControl "300"]
[EndTime "9:15:04 PDT"]
[Termination "KuriyamaMiraiUA won by checkmate"]

1. e4 {[%clk 0:04:52.3]} 1... c6 {[%clk 0:04:57.3]} 2. Nc3 {[%clk 0:04:47.8]}
2... d5 {[%clk 0:04:54.3]} 3. exd5 {[%clk 0:04:45]} 3... cxd5 {[%clk 0:04:51.7]}
4. Nxd5 {[%clk 0:04:43.7]} 4... Qxd5 {[%clk 0:04:50.3]} 5. d3 {[%clk 0:04:36.8]}
5... Nf6 {[%clk 0:04:42.9]} 6. Bg5 {[%clk 0:04:34.5]} 6... Bg4 {[%clk 0:04:38]}
7. Qd2 {[%clk 0:04:22.6]} 7... e5 {[%clk 0:04:22.4]} 8. Bxf6 {[%clk 0:04:20.1]}
8... gxf6 {[%clk 0:04:21.5]} 9. f3 {[%clk 0:04:17]} 9... Bh5 {[%clk 0:04:12.2]}
10. O-O-O {[%clk 0:04:14]} 10... Qxa2 {[%clk 0:04:07.5]} 11. b3 {[%clk
0:04:11.9]} 11... Qa1# {[%clk 0:04:05.9]} 0-1

[Event "Live Chess"]
[Site "Chess.com"]
[Date "2023.05.20"]
[Round "-"]
[White "RedRook90"]
[Black "jk0110"]
[Result "1-0"]
[WhiteElo "1977"]
[BlackElo "1066"]
[TimeControl "300"]
[EndTime "9:15:07 PDT"]
[Termination "RedRook90 won by checkmate"]

1. c4 {[%clk 0:04:58.8]} 1... e5 {[%clk 0:04:56.4]} 2. g3 {[%clk 0:04:57.6]}
2... Nf6 {[%clk 0:04:49.6]} 3. Bg2 {[%clk 0:04:56.6]} 3... d5 {[%clk 0:04:37]}
4. cxd5 {[%clk 0:04:53.5]} 4... Nxd5 {[%clk 0:04:36.4]} 5. Nc3 {[%clk
0:04:53.1]} 5... Be6 {[%clk 0:04:30.3]} 6. Nf3 {[%clk 0:04:46.8]} 6... Nc6
{[%clk 0:04:26]} 7. O-O {[%clk 0:04:44.8]} 7... Qd7 {[%clk 0:04:12.4]} 8. d3
{[%clk 0:04:36.9]} 8... Bh3 {[%clk 0:03:59.3]} 9. Bxh3 {[%clk 0:04:35.5]} 9...
Qxh3 {[%clk 0:03:57.8]} 10. Nxd5 {[%clk 0:04:34.5]} 10... O-O-O {[%clk
0:03:56.8]} 11. Nc3 {[%clk 0:04:16.2]} 11... h5 {[%clk 0:03:42.9]} 12. e4 {[%clk
0:04:07.5]} 12... h4 {[%clk 0:03:33.7]} 13. Nxh4 {[%clk 0:03:56.2]} 13... Rxh4
{[%clk 0:03:23.7]} 14. gxh4 {[%clk 0:03:56.1]} 14... Bc5 {[%clk 0:03:15.8]} 15.
Be3 {[%clk 0:03:31.5]} 15... Bxe3 {[%clk 0:02:58.6]} 16. fxe3 {[%clk 0:03:31.4]}
16... Qxe3+ {[%clk 0:02:57.6]} 17. Rf2 {[%clk 0:03:28.9]} 17... Rh8 {[%clk
0:02:45]} 18. Qf3 {[%clk 0:03:23.2]} 18... Qd4 {[%clk 0:02:36]} 19. Qxf7 {[%clk
0:02:58.6]} 19... Rxh4 {[%clk 0:02:29.4]} 20. Qe6+ {[%clk 0:02:51.9]} 20... Kd8
{[%clk 0:02:23.3]} 21. Qd5+ {[%clk 0:02:47.6]} 21... Qxd5 {[%clk 0:02:18.3]} 22.
Nxd5 {[%clk 0:02:47.5]} 22... Nd4 {[%clk 0:02:13.4]} 23. Rf7 {[%clk 0:02:41]}
23... Rg4+ {[%clk 0:01:59.3]} 24. Kf2 {[%clk 0:02:38.7]} 24... Ke8 {[%clk
0:01:53.4]} 25. Rxc7 {[%clk 0:02:36.1]} 25... Nc2 {[%clk 0:01:49.2]} 26. Rc1
{[%clk 0:02:33.1]} 26... Nd4 {[%clk 0:01:45.9]} 27. Rxb7 {[%clk 0:02:31]} 27...
Rh4 {[%clk 0:01:42.2]} 28. Rc8# {[%clk 0:02:29.6]} 1-0